[Event "Late-Titled-Tuesday-Blitz-January-23-2024"]
[Site "Chess.com"]
[Date "2024.01.23"]
[Round "7"]
[White "ArtemDyachuk"]
[Black "VladimirKramnik"]
[Result "1-0"]
[WhiteElo "2648"]
[BlackElo "2927"]
[TimeControl "180+1"]
[EndTime "15:14:21 PST"]
[Termination "ArtemDyachuk won on time"]

1. e4 {[%clk 0:03:00.9]} 1... c5 {[%clk 0:02:59.2]} 2. Nf3 {[%clk 0:03:00.7]}
2... d6 {[%clk 0:02:58.8]} 3. Bb5+ {[%clk 0:03:00.3]} 3... Nd7 {[%clk
0:02:57.7]} 4. d4 {[%clk 0:03:00.5]} 4... cxd4 {[%clk 0:02:57.3]} 5. Qxd4 {[%clk
0:03:00.9]} 5... a6 {[%clk 0:02:57.8]} 6. Be2 {[%clk 0:03:00.7]} 6... Ngf6
{[%clk 0:02:56.2]} 7. O-O {[%clk 0:02:59.4]} 7... e5 {[%clk 0:02:54.8]} 8. Qe3
{[%clk 0:02:58.7]} 8... Nc5 {[%clk 0:02:54]} 9. Nc3 {[%clk 0:02:55]} 9... Be7
{[%clk 0:02:50.7]} 10. h3 {[%clk 0:02:53.4]} 10... b5 {[%clk 0:02:46.8]} 11. b4
{[%clk 0:02:40.3]} 11... Ne6 {[%clk 0:02:42.8]} 12. a4 {[%clk 0:02:39.8]} 12...
bxa4 {[%clk 0:02:39.1]} 13. Rxa4 {[%clk 0:02:40.7]} 13... O-O {[%clk 0:02:34.6]}
14. Bb2 {[%clk 0:02:36.7]} 14... Nf4 {[%clk 0:02:20.5]} 15. Bc4 {[%clk
0:02:35.7]} 15... Qd7 {[%clk 0:02:11.9]} 16. Rfa1 {[%clk 0:02:30.5]} 16... Nxg2
{[%clk 0:01:48.8]} 17. Kxg2 {[%clk 0:02:12.2]} 17... Qxh3+ {[%clk 0:01:49]} 18.
Kg1 {[%clk 0:02:12.1]} 18... Ng4 {[%clk 0:01:49.1]} 19. Bf1 {[%clk 0:01:50.8]}
19... Qh5 {[%clk 0:01:46.9]} 20. Qe2 {[%clk 0:01:50.3]} 20... f5 {[%clk
0:01:37.7]} 21. Bg2 {[%clk 0:01:11.5]} 21... Bb7 {[%clk 0:01:36.3]} 22. b5
{[%clk 0:01:04.7]} 22... a5 {[%clk 0:01:05.8]} 23. Rxa5 {[%clk 0:00:55.7]} 23...
Rxa5 {[%clk 0:01:03.1]} 24. Rxa5 {[%clk 0:00:55.5]} 24... d5 {[%clk 0:00:59.8]}
25. Nxd5 {[%clk 0:00:47.7]} 25... Bxd5 {[%clk 0:00:55.2]} 26. exd5 {[%clk
0:00:47.6]} 26... e4 {[%clk 0:00:48.1]} 27. Ra7 {[%clk 0:00:41]} 27... exf3
{[%clk 0:00:12.3]} 28. Qe6+ {[%clk 0:00:37.9]} 28... Rf7 {[%clk 0:00:12.3]} 29.
Ra8+ {[%clk 0:00:36]} 29... Bf8 {[%clk 0:00:12.4]} 30. Rxf8+ {[%clk 0:00:36.2]}
1-0

[Event "Late-Titled-Tuesday-Blitz-January-23-2024"]
[Site "Chess.com"]
[Date "2024.01.23"]
[Round "7"]
[White "Kombinator01"]
[Black "DefiantChair"]
[Result "0-1"]
[WhiteElo "2460"]
[BlackElo "2593"]
[TimeControl "180+1"]
[EndTime "15:14:21 PST"]
[Termination "DefiantChair won on time"]

1. d4 {[%clk 0:02:58.9]} 1... Nf6 {[%clk 0:02:59.7]} 2. Bf4 {[%clk 0:02:57.7]}
2... d5 {[%clk 0:02:59.7]} 3. e3 {[%clk 0:02:57.5]} 3... c5 {[%clk 0:02:57.5]}
4. Nf3 {[%clk 0:02:52.7]} 4... Nc6 {[%clk 0:02:57.4]} 5. Nbd2 {[%clk 0:02:51.3]}
5... Qb6 {[%clk 0:02:56.5]} 6. dxc5 {[%clk 0:02:48.1]} 6... Qxb2 {[%clk
0:02:57.1]} 7. Rb1 {[%clk 0:02:35.7]} 7... Qc3 {[%clk 0:02:57.1]} 8. Bb5 {[%clk
0:02:32.1]} 8... e6 {[%clk 0:02:56.4]} 9. Ne5 {[%clk 0:02:18.6]} 9... Bd7 {[%clk
0:02:53.6]} 10. Nxd7 {[%clk 0:02:12.7]} 10... Nxd7 {[%clk 0:02:54.5]} 11. O-O
{[%clk 0:02:10.8]} 11... Nxc5 {[%clk 0:02:51.2]} 12. Nf3 {[%clk 0:01:51.2]}
12... a6 {[%clk 0:02:23.1]} 13. Be5 {[%clk 0:01:33.4]} 13... Qa5 {[%clk
0:02:20.6]} 14. Bxc6+ {[%clk 0:01:29.6]} 14... bxc6 {[%clk 0:02:20.5]} 15. Nd4
{[%clk 0:01:23.4]} 15... Rc8 {[%clk 0:02:07.8]} 16. c4 {[%clk 0:01:06.2]} 16...
f6 {[%clk 0:02:05.5]} 17. Bg3 {[%clk 0:00:49.8]} 17... Be7 {[%clk 0:02:05]} 18.
Qh5+ {[%clk 0:00:48.8]} 18... g6 {[%clk 0:02:00]} 19. Qh6 {[%clk 0:00:46.8]}
19... Kf7 {[%clk 0:01:59]} 20. cxd5 {[%clk 0:00:31.7]} 20... cxd5 {[%clk
0:01:58.6]} 21. h4 {[%clk 0:00:23.5]} 21... e5 {[%clk 0:01:58.4]} 22. Nb3 {[%clk
0:00:21.9]} 22... Nxb3 {[%clk 0:01:58.1]} 23. e4 {[%clk 0:00:17.2]} 23... Nd4
{[%clk 0:01:54.9]} 24. Rb7 {[%clk 0:00:16.9]} 24... Ne2+ {[%clk 0:01:52.6]} 25.
Kh2 {[%clk 0:00:16.6]} 25... Nxg3 {[%clk 0:01:53.3]} 26. fxg3 {[%clk 0:00:17.5]}
26... Rc7 {[%clk 0:01:49.4]} 27. Rb3 {[%clk 0:00:10.9]} 27... dxe4 {[%clk
0:01:47.7]} 28. h5 {[%clk 0:00:10.1]} 28... Rcc8 {[%clk 0:01:46.2]} 29. Rb7
{[%clk 0:00:08.8]} 29... Qd5 {[%clk 0:01:40.8]} 30. Ra7 {[%clk 0:00:06.5]} 30...
e3 {[%clk 0:01:31.8]} 31. Qxe3 {[%clk 0:00:05.7]} 31... Qc5 {[%clk 0:01:30]} 32.
Qb3+ {[%clk 0:00:05.3]} 32... Qc4 {[%clk 0:01:27.6]} 33. Qf3 {[%clk 0:00:05.2]}
33... Qe6 {[%clk 0:01:24.6]} 34. h6 {[%clk 0:00:02.8]} 34... Rhd8 {[%clk
0:01:21.6]} 35. Rb7 {[%clk 0:00:03.1]} 35... Rd7 {[%clk 0:01:19.1]} 36. Rb3
{[%clk 0:00:02.6]} 36... Rcd8 {[%clk 0:01:18.8]} 37. Qf2 {[%clk 0:00:02.8]}
37... f5 {[%clk 0:01:18]} 38. Qf3 {[%clk 0:00:03.1]} 38... e4 {[%clk 0:01:18.1]}
39. Qc3 {[%clk 0:00:03.4]} 39... Bf6 {[%clk 0:01:16.9]} 40. Qb4 {[%clk
0:00:03.5]} 40... e3 {[%clk 0:01:15.7]} 41. Qe1 {[%clk 0:00:03.1]} 41... e2
{[%clk 0:01:16]} 42. Rf2 {[%clk 0:00:02.6]} 42... Re8 {[%clk 0:01:16]} 0-1

[Event "Late-Titled-Tuesday-Blitz-January-23-2024"]
[Site "Chess.com"]
[Date "2024.01.23"]
[Round "7"]
[White "lucachess49"]
[Black "Fernando_Offermann"]
[Result "0-1"]
[WhiteElo "2507"]
[BlackElo "2482"]
[TimeControl "180+1"]
[EndTime "15:14:27 PST"]
[Termination "Fernando_Offermann won by resignation"]

1. c4 {[%clk 0:03:00.9]} 1... g6 {[%clk 0:02:57.6]} 2. Nf3 {[%clk 0:02:56.8]}
2... Bg7 {[%clk 0:02:57.2]} 3. g3 {[%clk 0:02:56.8]} 3... c5 {[%clk 0:02:56.1]}
4. Bg2 {[%clk 0:02:56.6]} 4... Nc6 {[%clk 0:02:55.4]} 5. O-O {[%clk 0:02:57]}
5... e5 {[%clk 0:02:53.9]} 6. d3 {[%clk 0:02:50.7]} 6... f5 {[%clk 0:02:53.5]}
7. Ne1 {[%clk 0:02:49.6]} 7... Nf6 {[%clk 0:02:44.9]} 8. Nc3 {[%clk 0:02:48.3]}
8... O-O {[%clk 0:02:35.5]} 9. Bg5 {[%clk 0:02:41.5]} 9... h6 {[%clk 0:02:33.6]}
10. Bxf6 {[%clk 0:02:41.1]} 10... Bxf6 {[%clk 0:02:33.5]} 11. Nc2 {[%clk
0:02:40]} 11... f4 {[%clk 0:02:32.9]} 12. Nd5 {[%clk 0:02:03.7]} 12... Bg7
{[%clk 0:02:28.5]} 13. Be4 {[%clk 0:01:59.3]} 13... Kh7 {[%clk 0:02:18.4]} 14.
h4 {[%clk 0:01:50.2]} 14... d6 {[%clk 0:02:17]} 15. h5 {[%clk 0:01:48.2]} 15...
Bf5 {[%clk 0:02:17]} 16. hxg6+ {[%clk 0:01:40.4]} 16... Kxg6 {[%clk 0:02:13.4]}
17. Bxf5+ {[%clk 0:01:23.7]} 17... Rxf5 {[%clk 0:02:12.6]} 18. e4 {[%clk
0:01:18.9]} 18... Rg5 {[%clk 0:01:54.6]} 19. Kg2 {[%clk 0:01:11.1]} 19... Qd7
{[%clk 0:01:52.6]} 20. Rh1 {[%clk 0:01:10.2]} 20... Rf8 {[%clk 0:01:51.3]} 21.
Rh4 {[%clk 0:00:49]} 21... Nd4 {[%clk 0:01:41.6]} 22. Nxd4 {[%clk 0:00:47.7]}
22... cxd4 {[%clk 0:01:41.3]} 23. Rh3 {[%clk 0:00:27.4]} 23... Qf7 {[%clk
0:01:36.9]} 24. f3 {[%clk 0:00:23.6]} 24... h5 {[%clk 0:01:30.8]} 25. Qe2 {[%clk
0:00:22.2]} 25... Rh8 {[%clk 0:01:22.9]} 26. Rah1 {[%clk 0:00:22.5]} 26... fxg3
{[%clk 0:01:11.9]} 27. Rxg3 {[%clk 0:00:17.9]} 27... Bf6 {[%clk 0:01:11.9]} 28.
Rxg5+ {[%clk 0:00:17.6]} 28... Bxg5 {[%clk 0:01:11.3]} 29. Kf1 {[%clk
0:00:17.3]} 29... h4 {[%clk 0:01:10.2]} 30. Rh3 {[%clk 0:00:17.6]} 30... Qe6
{[%clk 0:01:05.2]} 31. Qg2 {[%clk 0:00:17.1]} 31... Kh5 {[%clk 0:01:02.8]} 32.
Ke2 {[%clk 0:00:16.5]} 32... Rf8 {[%clk 0:01:02.6]} 33. f4 {[%clk 0:00:14.6]}
33... exf4 {[%clk 0:01:01.2]} 34. Qf3+ {[%clk 0:00:13]} 34... Qg4 {[%clk
0:01:00.9]} 35. Rh1 {[%clk 0:00:12.9]} 35... Qxf3+ {[%clk 0:00:59.1]} 36. Kxf3
{[%clk 0:00:13.8]} 36... Bf6 {[%clk 0:00:57.8]} 37. Nxf4+ {[%clk 0:00:12.9]}
37... Kh6 {[%clk 0:00:55.7]} 38. Kg4 {[%clk 0:00:13]} 38... Bg5 {[%clk
0:00:54.7]} 39. Ne6 {[%clk 0:00:12.4]} 39... Rg8 {[%clk 0:00:55]} 40. Nxg5
{[%clk 0:00:11.9]} 40... Rxg5+ {[%clk 0:00:54.2]} 41. Kf4 {[%clk 0:00:12]} 41...
Kh5 {[%clk 0:00:54.3]} 42. Rh3 {[%clk 0:00:10.9]} 42... Rg1 {[%clk 0:00:53.7]}
43. Rh2 {[%clk 0:00:10.1]} 43... Rf1+ {[%clk 0:00:51.3]} 0-1

[Event "Late-Titled-Tuesday-Blitz-January-23-2024"]
[Site "Chess.com"]
[Date "2024.01.23"]
[Round "7"]
[White "Sebastian"]
[Black "Dedic8"]
[Result "1-0"]
[WhiteElo "3006"]
[BlackElo "2816"]
[TimeControl "180+1"]
[EndTime "15:14:28 PST"]
[Termination "Sebastian won by resignation"]

1. e4 {[%clk 0:03:00.9]} 1... e5 {[%clk 0:02:59.9]} 2. Nf3 {[%clk 0:03:00.9]}
2... Nc6 {[%clk 0:03:00.7]} 3. Bb5 {[%clk 0:03:01.4]} 3... a6 {[%clk 0:03:01.1]}
4. Ba4 {[%clk 0:03:01.6]} 4... Nf6 {[%clk 0:03:01.8]} 5. O-O {[%clk 0:03:02.2]}
5... b5 {[%clk 0:03:02.5]} 6. Bb3 {[%clk 0:03:02.3]} 6... Bc5 {[%clk 0:03:03.3]}
7. c3 {[%clk 0:03:00]} 7... d6 {[%clk 0:03:02.8]} 8. d4 {[%clk 0:03:00.4]} 8...
Bb6 {[%clk 0:03:03.2]} 9. Re1 {[%clk 0:02:58.4]} 9... O-O {[%clk 0:03:00.2]} 10.
Bg5 {[%clk 0:02:55.3]} 10... h6 {[%clk 0:02:58.9]} 11. Bh4 {[%clk 0:02:55]}
11... g5 {[%clk 0:02:44.4]} 12. Nxg5 {[%clk 0:02:54.6]} 12... hxg5 {[%clk
0:02:44.3]} 13. Bxg5 {[%clk 0:02:55.3]} 13... Kg7 {[%clk 0:02:44.8]} 14. Re3
{[%clk 0:02:54.4]} 14... Rg8 {[%clk 0:01:51.1]} 15. Nd2 {[%clk 0:01:27.5]} 15...
Kf8 {[%clk 0:01:43.4]} 16. Bxf6 {[%clk 0:01:05.5]} 16... Qxf6 {[%clk 0:01:43.2]}
17. Rf3 {[%clk 0:01:05.8]} 17... Qg6 {[%clk 0:01:35.6]} 18. Rxf7+ {[%clk
0:01:03.2]} 18... Ke8 {[%clk 0:01:35.8]} 19. g3 {[%clk 0:01:01.5]} 19... exd4
{[%clk 0:01:20]} 20. Nf3 {[%clk 0:00:50.2]} 20... Be6 {[%clk 0:00:53.2]} 21. Rf4
{[%clk 0:00:37.4]} 21... Bxb3 {[%clk 0:00:31.3]} 22. Qxb3 {[%clk 0:00:35]} 22...
Kd7 {[%clk 0:00:28.2]} 23. Nh4 {[%clk 0:00:30.1]} 23... Qg5 {[%clk 0:00:21.4]}
24. Rf7+ {[%clk 0:00:17.2]} 24... Kc8 {[%clk 0:00:20.2]} 25. Nf5 {[%clk
0:00:15.7]} 25... Re8 {[%clk 0:00:06.8]} 26. Qd5 {[%clk 0:00:15.2]} 26... dxc3
{[%clk 0:00:03.9]} 27. Qxc6 {[%clk 0:00:14.1]} 1-0

[Event "Late-Titled-Tuesday-Blitz-January-23-2024"]
[Site "Chess.com"]
[Date "2024.01.23"]
[Round "7"]
[White "yaguigor"]
[Black "Rikikits"]
[Result "0-1"]
[WhiteElo "2637"]
[BlackElo "2831"]
[TimeControl "180+1"]
[EndTime "15:14:32 PST"]
[Termination "Rikikits won by resignation"]

1. e4 {[%clk 0:02:53.2]} 1... c6 {[%clk 0:02:58.3]} 2. d4 {[%clk 0:02:52.2]}
2... d5 {[%clk 0:02:58.5]} 3. Nc3 {[%clk 0:02:52.4]} 3... dxe4 {[%clk
0:02:57.8]} 4. Nxe4 {[%clk 0:02:52.4]} 4... Nf6 {[%clk 0:02:58.5]} 5. Nxf6+
{[%clk 0:02:52.1]} 5... exf6 {[%clk 0:02:59.4]} 6. c3 {[%clk 0:02:51.7]} 6...
Bd6 {[%clk 0:02:58.7]} 7. Bd3 {[%clk 0:02:51.7]} 7... O-O {[%clk 0:02:57.7]} 8.
Qc2 {[%clk 0:02:51.3]} 8... Re8+ {[%clk 0:02:57.7]} 9. Ne2 {[%clk 0:02:51.8]}
9... h5 {[%clk 0:02:58]} 10. Be3 {[%clk 0:02:52.2]} 10... Nd7 {[%clk 0:02:50.7]}
11. O-O-O {[%clk 0:02:47.4]} 11... Nf8 {[%clk 0:02:46.4]} 12. c4 {[%clk
0:02:37.1]} 12... b5 {[%clk 0:02:39.6]} 13. c5 {[%clk 0:02:32.1]} 13... Bc7
{[%clk 0:02:34.6]} 14. d5 {[%clk 0:02:03.3]} 14... cxd5 {[%clk 0:02:26.7]} 15.
Bxb5 {[%clk 0:02:02.6]} 15... Re5 {[%clk 0:02:12]} 16. Nd4 {[%clk 0:01:37.3]}
16... Bb7 {[%clk 0:02:01.8]} 17. Nc6 {[%clk 0:01:30]} 17... Bxc6 {[%clk
0:02:01]} 18. Bxc6 {[%clk 0:01:30.9]} 18... Rb8 {[%clk 0:02:01]} 19. Bf4 {[%clk
0:01:19]} 19... Ne6 {[%clk 0:01:50.6]} 20. Bxe5 {[%clk 0:01:16.2]} 20... Bxe5
{[%clk 0:01:51.5]} 21. Rxd5 {[%clk 0:00:47.4]} 21... Qa5 {[%clk 0:01:51.4]} 22.
b3 {[%clk 0:00:42]} 22... Nd4 {[%clk 0:01:44.5]} 23. Rxd4 {[%clk 0:00:27]} 23...
Bxd4 {[%clk 0:01:45.4]} 24. Kb1 {[%clk 0:00:23]} 24... Bxc5 {[%clk 0:01:25]} 25.
Rd1 {[%clk 0:00:20.9]} 25... Ba3 {[%clk 0:01:15.5]} 26. Bd5 {[%clk 0:00:17.7]}
26... Rd8 {[%clk 0:01:01.8]} 27. Bc4 {[%clk 0:00:16.2]} 27... Rxd1+ {[%clk
0:00:53.3]} 28. Qxd1 {[%clk 0:00:17.1]} 28... g6 {[%clk 0:00:53.5]} 29. Kc2
{[%clk 0:00:15]} 29... Qf5+ {[%clk 0:00:51.5]} 30. Qd3 {[%clk 0:00:15.3]} 30...
Qxf2+ {[%clk 0:00:51.5]} 31. Qe2 {[%clk 0:00:15.8]} 31... Qf5+ {[%clk
0:00:47.7]} 32. Qd3 {[%clk 0:00:13.5]} 32... Qg5 {[%clk 0:00:38.8]} 33. Qe2
{[%clk 0:00:10.7]} 33... Kg7 {[%clk 0:00:36.2]} 34. Kd3 {[%clk 0:00:07.6]} 34...
Bb4 {[%clk 0:00:33.4]} 35. Qe8 {[%clk 0:00:05.2]} 35... Qd2+ {[%clk 0:00:32.5]}
0-1

[Event "Late-Titled-Tuesday-Blitz-January-23-2024"]
[Site "Chess.com"]
[Date "2024.01.23"]
[Round "7"]
[White "GMJustin"]
[Black "thesupera12"]
[Result "0-1"]
[WhiteElo "2335"]
[BlackElo "2519"]
[TimeControl "180+1"]
[EndTime "15:14:32 PST"]
[Termination "thesupera12 won on time"]

1. d4 {[%clk 0:02:02.8]} 1... g6 {[%clk 0:02:57.2]} 2. e4 {[%clk 0:02:01]} 2...
Bg7 {[%clk 0:02:56.7]} 3. Nc3 {[%clk 0:02:00.9]} 3... c5 {[%clk 0:02:54.1]} 4.
d5 {[%clk 0:01:59.5]} 4... d6 {[%clk 0:02:53.2]} 5. Nf3 {[%clk 0:01:53.1]} 5...
Nf6 {[%clk 0:02:53.8]} 6. Bb5+ {[%clk 0:01:49.6]} 6... Bd7 {[%clk 0:02:53]} 7.
a4 {[%clk 0:01:49.3]} 7... O-O {[%clk 0:02:51.9]} 8. O-O {[%clk 0:01:48]} 8...
a6 {[%clk 0:02:50.4]} 9. Be2 {[%clk 0:01:41.4]} 9... Bc8 {[%clk 0:02:37.6]} 10.
Nd2 {[%clk 0:01:36.3]} 10... Nbd7 {[%clk 0:02:35.7]} 11. Nc4 {[%clk 0:01:32.4]}
11... Rb8 {[%clk 0:02:35.4]} 12. Bf4 {[%clk 0:01:25]} 12... b5 {[%clk
0:02:33.8]} 13. axb5 {[%clk 0:01:24.2]} 13... axb5 {[%clk 0:02:34.7]} 14. Na5
{[%clk 0:01:23]} 14... b4 {[%clk 0:02:29]} 15. Nc6 {[%clk 0:01:22.3]} 15... Qc7
{[%clk 0:02:29.7]} 16. Nb5 {[%clk 0:01:09.8]} 16... Rxb5 {[%clk 0:02:27.4]} 17.
Bxb5 {[%clk 0:01:08.8]} 17... Nxe4 {[%clk 0:02:19]} 18. Nxe7+ {[%clk 0:01:07.8]}
18... Kh8 {[%clk 0:02:18.9]} 19. Nxc8 {[%clk 0:01:03.8]} 19... Qxc8 {[%clk
0:02:15.4]} 20. Ra7 {[%clk 0:01:00.1]} 20... Nb6 {[%clk 0:02:09]} 21. Re1 {[%clk
0:00:54.2]} 21... Qf5 {[%clk 0:02:08.9]} 22. Qf3 {[%clk 0:00:48.3]} 22... Nxd5
{[%clk 0:01:57.3]} 23. Qxe4 {[%clk 0:00:43.1]} 23... Nxf4 {[%clk 0:01:53.3]} 24.
Qxf5 {[%clk 0:00:29.8]} 24... gxf5 {[%clk 0:01:54.2]} 25. g3 {[%clk 0:00:29.4]}
25... Ng6 {[%clk 0:01:52.8]} 26. b3 {[%clk 0:00:24.5]} 26... Bd4 {[%clk
0:01:49.8]} 27. Re8 {[%clk 0:00:21.9]} 27... Kg7 {[%clk 0:01:25.6]} 28. Rxf8
{[%clk 0:00:21.3]} 28... Kxf8 {[%clk 0:01:26.5]} 29. Kg2 {[%clk 0:00:16.6]}
29... Ne5 {[%clk 0:01:24.8]} 30. f4 {[%clk 0:00:15.5]} 30... Ng4 {[%clk
0:01:24.5]} 31. Bc4 {[%clk 0:00:13.6]} 31... Ne3+ {[%clk 0:01:22.9]} 32. Kf3
{[%clk 0:00:13]} 32... Nxc2 {[%clk 0:01:19.7]} 33. Rxf7+ {[%clk 0:00:12]} 33...
Ke8 {[%clk 0:01:20.3]} 34. Rxf5 {[%clk 0:00:09.1]} 34... Bg1 {[%clk 0:01:19.1]}
35. Rh5 {[%clk 0:00:08.5]} 35... Nd4+ {[%clk 0:01:15.4]} 36. Ke4 {[%clk
0:00:07.8]} 36... Nc2 {[%clk 0:01:08.9]} 37. Rxh7 {[%clk 0:00:07.3]} 37... Ne3
{[%clk 0:01:09.6]} 38. Bd5 {[%clk 0:00:06.3]} 38... Ng4 {[%clk 0:01:07.6]} 39.
Kd3 {[%clk 0:00:03.1]} 39... Nf6 {[%clk 0:01:07.7]} 40. Rh8+ {[%clk 0:00:03.4]}
40... Ke7 {[%clk 0:01:08.6]} 41. Kc4 {[%clk 0:00:02.6]} 41... Ng4 {[%clk
0:01:06.7]} 42. Rh7+ {[%clk 0:00:01.7]} 42... Kf6 {[%clk 0:01:07.3]} 43. Bf3
{[%clk 0:00:01.5]} 43... Ne3+ {[%clk 0:01:08.2]} 44. Kd3 {[%clk 0:00:00.7]}
44... Nf5 {[%clk 0:01:09.1]} 0-1

[Event "Late-Titled-Tuesday-Blitz-January-23-2024"]
[Site "Chess.com"]
[Date "2024.01.23"]
[Round "7"]
[White "alexrustemov"]
[Black "RodokininEV"]
[Result "0-1"]
[WhiteElo "2825"]
[BlackElo "2623"]
[TimeControl "180+1"]
[EndTime "15:14:39 PST"]
[Termination "RodokininEV won on time"]

1. d4 {[%clk 0:02:59.6]} 1... Nf6 {[%clk 0:02:57.2]} 2. c4 {[%clk 0:02:59.7]}
2... e6 {[%clk 0:02:57.1]} 3. Nf3 {[%clk 0:03:00.3]} 3... Bb4+ {[%clk
0:02:53.9]} 4. Bd2 {[%clk 0:02:59.6]} 4... Qe7 {[%clk 0:02:52.9]} 5. g3 {[%clk
0:02:59.8]} 5... O-O {[%clk 0:02:52.5]} 6. Bg2 {[%clk 0:02:59.2]} 6... c5 {[%clk
0:02:50.5]} 7. O-O {[%clk 0:02:55.8]} 7... d6 {[%clk 0:02:44.1]} 8. Bxb4 {[%clk
0:02:47.9]} 8... cxb4 {[%clk 0:02:44.2]} 9. a3 {[%clk 0:02:43]} 9... bxa3 {[%clk
0:02:43.8]} 10. Rxa3 {[%clk 0:02:40.7]} 10... Nc6 {[%clk 0:02:44]} 11. Nc3
{[%clk 0:02:39.3]} 11... Rd8 {[%clk 0:02:40.7]} 12. Qd2 {[%clk 0:02:31.3]} 12...
e5 {[%clk 0:02:40.6]} 13. Nd5 {[%clk 0:02:25.3]} 13... Nxd5 {[%clk 0:02:35.3]}
14. cxd5 {[%clk 0:02:25.4]} 14... Nxd4 {[%clk 0:02:29.1]} 15. Nxd4 {[%clk
0:02:24.9]} 15... exd4 {[%clk 0:02:30]} 16. Bf3 {[%clk 0:02:07.9]} 16... Bf5
{[%clk 0:01:44.4]} 17. Qxd4 {[%clk 0:02:06.8]} 17... b6 {[%clk 0:01:44.9]} 18.
Rc1 {[%clk 0:02:02.8]} 18... Rdc8 {[%clk 0:01:44.8]} 19. Rac3 {[%clk 0:01:57.9]}
19... Rxc3 {[%clk 0:01:43.6]} 20. Qxc3 {[%clk 0:01:55.4]} 20... h6 {[%clk
0:01:42.5]} 21. Qc7 {[%clk 0:01:53.8]} 21... Qe5 {[%clk 0:01:39.8]} 22. Rc3
{[%clk 0:01:46.6]} 22... Bh3 {[%clk 0:01:29.5]} 23. Qb7 {[%clk 0:01:42.8]} 23...
Qe8 {[%clk 0:01:12.7]} 24. Rc7 {[%clk 0:01:32.1]} 24... Rc8 {[%clk 0:01:12.5]}
25. Qxa7 {[%clk 0:01:29.3]} 25... Ra8 {[%clk 0:01:08.2]} 26. Rxf7 {[%clk
0:00:55.1]} 26... Rxa7 {[%clk 0:01:03.8]} 27. Rxa7 {[%clk 0:00:56]} 27... Qc8
{[%clk 0:00:59]} 28. Ra1 {[%clk 0:00:53.7]} 28... Qc2 {[%clk 0:00:56.9]} 29. b4
{[%clk 0:00:53]} 29... Qb2 {[%clk 0:00:55]} 30. Rd1 {[%clk 0:00:37.8]} 30...
Qxb4 {[%clk 0:00:53.3]} 31. Bg2 {[%clk 0:00:27]} 31... Bxg2 {[%clk 0:00:52.7]}
32. Kxg2 {[%clk 0:00:27.9]} 32... b5 {[%clk 0:00:50.3]} 33. Kf3 {[%clk
0:00:24.5]} 33... Qb3+ {[%clk 0:00:48.6]} 34. Rd3 {[%clk 0:00:24.7]} 34... Qc4
{[%clk 0:00:48.4]} 35. Ke3 {[%clk 0:00:18.1]} 35... b4 {[%clk 0:00:47]} 36. Kd2
{[%clk 0:00:15.2]} 36... b3 {[%clk 0:00:42.3]} 37. Rc3 {[%clk 0:00:15.4]} 37...
Qd4+ {[%clk 0:00:41.3]} 38. Rd3 {[%clk 0:00:15.4]} 38... Qb2+ {[%clk 0:00:38.6]}
39. Kd1 {[%clk 0:00:14]} 39... Qc2+ {[%clk 0:00:38.2]} 40. Ke1 {[%clk
0:00:13.5]} 40... Qxd3 {[%clk 0:00:36.1]} 0-1

[Event "Late-Titled-Tuesday-Blitz-January-23-2024"]
[Site "Chess.com"]
[Date "2024.01.23"]
[Round "7"]
[White "dolynachess"]
[Black "olawsson"]
[Result "1-0"]
[WhiteElo "2498"]
[BlackElo "2168"]
[TimeControl "180+1"]
[EndTime "15:14:39 PST"]
[Termination "dolynachess won on time"]

1. d4 {[%clk 0:02:47.4]} 1... d6 {[%clk 0:02:59.3]} 2. c4 {[%clk 0:02:46.5]}
2... g6 {[%clk 0:02:59.6]} 3. Nc3 {[%clk 0:02:45.9]} 3... Bg7 {[%clk 0:03:00.4]}
4. Nf3 {[%clk 0:02:46.1]} 4... Nc6 {[%clk 0:03:00.4]} 5. e3 {[%clk 0:02:45.9]}
5... Nf6 {[%clk 0:02:53.8]} 6. Rb1 {[%clk 0:02:33.6]} 6... O-O {[%clk 0:02:49]}
7. b4 {[%clk 0:02:33.1]} 7... e5 {[%clk 0:02:49.2]} 8. b5 {[%clk 0:02:27.3]}
8... Ne7 {[%clk 0:02:28.1]} 9. Be2 {[%clk 0:02:05.8]} 9... Bf5 {[%clk 0:01:56]}
10. Rb3 {[%clk 0:02:04.6]} 10... Ne4 {[%clk 0:01:50]} 11. O-O {[%clk 0:01:50.8]}
11... exd4 {[%clk 0:01:36.1]} 12. Nxd4 {[%clk 0:01:35.4]} 12... Nxc3 {[%clk
0:01:32.9]} 13. Rxc3 {[%clk 0:01:36.3]} 13... Bd7 {[%clk 0:01:32.7]} 14. Bf3
{[%clk 0:01:30.6]} 14... c5 {[%clk 0:00:53.6]} 15. bxc6 {[%clk 0:01:29.6]} 15...
bxc6 {[%clk 0:00:54]} 16. Rd3 {[%clk 0:01:17.1]} 16... d5 {[%clk 0:00:33.9]} 17.
cxd5 {[%clk 0:01:10.2]} 17... cxd5 {[%clk 0:00:32.3]} 18. Ba3 {[%clk 0:01:09.7]}
18... Re8 {[%clk 0:00:24.1]} 19. Bxe7 {[%clk 0:00:51.8]} 19... Qxe7 {[%clk
0:00:22.5]} 20. Bxd5 {[%clk 0:00:48.6]} 20... Rac8 {[%clk 0:00:20.1]} 21. Qf3
{[%clk 0:00:34.3]} 21... Qf6 {[%clk 0:00:06.9]} 22. Rfd1 {[%clk 0:00:21.3]}
22... Ba4 {[%clk 0:00:02.5]} 23. Nb3 {[%clk 0:00:09.7]} 23... Qxf3 {[%clk
0:00:02.2]} 24. gxf3 {[%clk 0:00:06.7]} 24... Rc2 {[%clk 0:00:02.1]} 25. R1d2
{[%clk 0:00:01]} 1-0